[Event "SixDays Budapest GM-C 09-2024"]
[Site "Budapest"]
[Date "2024.09.25"]
[Round "2.4"]
[White "Mayank Chakraborty"]
[Black "Gatineau, Yovann"]
[Result "1-0"]
[ECO "B12"]
[WhiteElo "2431"]
[BlackElo "2400"]
[Annotator "TA"]
[PlyCount "85"]
[EventDate "2024.09.24"]
[EventType "tourn"]
[EventCountry "HUN"]
[SourceTitle "playchess.com"]
[Source "ChessBase"]
[SourceQuality "1"]
[TimeControl "5400+30"]

{[%evp 9,85,6,-3,-30,-20,-15,-12,0,23,0,2,0,13,0,0,-65,0,0,0,0,0,0,0,0,0,-64,-54,-57,-53,-93,-86,-170,-59,-61,0,0,-29,-46,0,0,0,0,0,0,0,0,35,13,7,6,4,0,0,0,6,-25,-34,-16,10,0,60,55,57,54,118,108,106,99,206,208,287,294,347,337,29966,29969,29965,29965]} 1. e4 c6 {[%emt 0:04:03]} 2. d4 {[%emt 0:00:09]} d5 {[%emt 0:00:07]} 3. f3 {[%emt 0:00:04]} e6 {[%emt 0:01:10]} 4. Nc3 {[%emt 0:00:08]} Bb4 {[%emt 0:01:17]} 5. Bd2 {[%emt 0:00:13]} Ne7 {[%emt 0:01:59]} 6. h4 {[%emt 0:02:00]} Nd7 {[%emt 0:04:54]} 7. Nce2 {[%emt 0:10:49]} Bxd2+ {[%emt 0:04:35]} 8. Qxd2 {[%emt 0:00:08] The position is equal.} O-O {[%emt 0:21:25]} 9. h5 {[%emt 0:00:58]} h6 {[%emt 0:00:35]} 10. O-O-O {[%emt 0:02:59]} e5 {[%emt 0:04:54]} 11. dxe5 {[%emt 0:04:29]} Nxe5 {[%emt 0:01:55]} 12. Qc3 {[%emt 0:02:25]} ({Better is} 12. Nc3 $11) 12... Qc7 {[%emt 0:08:51]} (12... Qd6 $1 $15) 13. exd5 $11 {[%emt 0:05:23]} Rd8 {[%emt 0:00:27]} (13... Nxd5 $2 {loses.} 14. Rxd5 Re8 15. Nh3 $18) 14. Nf4 {[%emt 0:01:01]} Qd6 {[%emt 0:03:07]} 15. Re1 {[%emt 0:18:48]} Nd7 {[%emt 0:03:48]} 16. Ngh3 {[%emt 0:05:45][%cal Of4e6]} cxd5 {[%emt 0:02:02]} 17. g4 {[%emt 0:19:46]} (17. Qd4 $11) 17... d4 $15 {[%emt 0:01:47]} 18. Qd3 {[%emt 0:06:08]} Nc6 {[%emt 0:07:35]} 19. Rg1 {[%emt 0:04:32]} Nc5 {[%emt 0:03:56]} 20. Qa3 {[%emt 0:03:08] [#]} (20. Qd1 $17 {is a better defense.}) 20... b5 {[%emt 0:04:15]} 21. Bxb5 {[%emt 0:02:03]} Rb8 {[%emt 0:00:51]} 22. Bxc6 {[%emt 0:04:21]} Qxc6 {[%emt 0:00:05]} 23. Re5 {[%emt 0:01:40]} Rb5 {[%emt 0:06:11]} (23... Na4 $15 24. Nd3 Bd7 (24... Qxf3 25. Qxa4 Qxh3 26. Re8+ Rxe8 27. Qxe8+ Kh7 28. Qe4+ f5 29. Qxd4 $14)) 24. Kb1 $1 $11 {[%emt 0:01:08][%cal Oh3f2]} Qb6 {[%emt 0:11:20] White must now prevent ...Ra5.} 25. Nd3 $1 {[%emt 0:04:17]} Nxd3 {[%emt 0:01:02]} 26. Rxb5 {[%emt 0:00:01]} Qxb5 {[%emt 0:00:07]} 27. Qxd3 {[%emt 0:01:02]} Qb6 {[%emt 0:00:24]} 28. Re1 {[%emt 0:00:32]} Ba6 $132 {[%emt 0:01:07][%mdl 2048] Black has counterplay} 29. Qd2 {[%emt 0:00:19]} d3 {[%emt 0:00:40] ...dxc2+ would now be deadly.} 30. c3 {[%emt 0:00:07]} Bb7 {[%emt 0:00:28]} 31. Re3 {[%emt 0:00:52]} Qf6 {[%emt 0:00:30]} 32. Rxd3 {[%emt 0:00:42]} Rxd3 {[%emt 0:00:29]} 33. Qxd3 {[%emt 0:00:01]} Bxf3 {[%emt 0:00:21][%mdl 4096] Endgame. KQB-KQN} 34. Nf2 {[%emt 0:00:13]} Bc6 {[%emt 0:00:39]} (34... Qf4 $11) 35. Qe3 $1 $14 {[%emt 0:00:09]} a5 {[%emt 0:00:32]} 36. b3 {[%emt 0:00:33]} g6 {[%emt 0:00:26]} ({Black should try} 36... Qd6 $14) 37. hxg6 $16 {[%emt 0:00:09]} Qxg6+ {[%emt 0:00:27]} 38. Kb2 {[%emt 0:00:06]} f5 {[%emt 0:00:24] [#]} (38... Qf6 $16 39. Qd2 Kh7) 39. Qd3 $1 $18 {[%emt 0:01:27]} Be4 {[%emt 0:00:42]} 40. Qd8+ {[%emt 0:00:13]} Kh7 {[%emt 0:00:14]} 41. Qxa5 {[%emt 0:00:53]} h5 $2 {[%emt 0:00:48]} (41... Qe6 $18 42. Qc7+ Kg6) 42. Nxe4 {[%emt 0:00:10]} hxg4 {[%emt 0:00:15]} 43. Ng3 {[%emt 0:00:34] Weighted Error Value: White=0.13 (very precise) /Black=0.41.  Mistake:       	White=3     	Black=7      Inaccurate:     	White=2     	Black=4      OK:         	White=13    	Black=13     Best:        	White=3     	---        Strong:       	White=4     	---} 1-0

[Event "SixDays Budapest GM-C 09-2024"]
[Site "Budapest"]
[Date "2024.09.25"]
[Round "2.5"]
[White "Zia, Tahsin Tajwar"]
[Black "Grebennikov, Nikolai A."]
[Result "1-0"]
[ECO "D72"]
[WhiteElo "2255"]
[BlackElo "2220"]
[Annotator "RC"]
[PlyCount "73"]
[EventDate "2024.09.24"]
[EventType "tourn"]
[EventCountry "HUN"]
[SourceTitle "playchess.com"]
[Source "ChessBase"]
[SourceQuality "1"]
[TimeControl "5400+30"]

1. d4 {[%emt 0:01:34]} Nf6 {[%emt 0:04:13]} 2. c4 {[%emt 0:00:25]} g6 {[%emt 0:00:09]} 3. g3 {[%emt 0:00:10]} Bg7 {[%emt 0:00:25]} 4. Bg2 {[%emt 0:00:06]} d5 {[%emt 0:00:06]} 5. cxd5 {[%emt 0:00:26]} Nxd5 {[%emt 0:00:05]} 6. e4 {[%emt 0:00:12]} Nb6 {[%emt 0:00:04]} 7. Ne2 {[%emt 0:00:05]} c5 {[%emt 0:03:29]} 8. d5 {[%emt 0:00:56]} e6 {[%emt 0:01:58]} 9. O-O {[%emt 0:00:27]} exd5 {[%emt 0:00:21]} 10. exd5 {[%emt 0:00:01]} O-O {[%emt 0:00:29]} 11. Nec3 {[%emt 0:01:14]} Na6 {[%emt 0:00:47]} 12. a4 {[%emt 0:04:34]} Nc4 {[%emt 0:03:21]} 13. Na3 {[%emt 0:01:24]} Nxa3 {[%emt 0:07:03]} 14. Rxa3 {[%emt 0:00:22]} Bf5 {[%emt 0:00:34]} 15. g4 {[%emt 0:00:06]} Bd7 {[%emt 0:00:38]} 16. Ne4 {[%emt 0:03:00]} f5 {[%emt 0:08:13]} 17. gxf5 {[%emt 0:17:47]} Rxf5 {[%emt 0:04:31]} 18. Ng3 {[%emt 0:01:27]} Rf7 {[%emt 0:04:59]} 19. d6 {[%emt 0:29:56]} Bc6 {[%emt 0:01:41]} 20. Bd5 {[%emt 0:01:10]} Nb4 {[%emt 0:05:49]} 21. Bxf7+ {[%emt 0:05:20]} Kxf7 {[%emt 0:03:33]} 22. Re1 {[%emt 0:00:51]} Nd5 {[%emt 0:11:52]} 23. Ne4 {[%emt 0:08:53]} Kg8 {[%emt 0:03:12]} 24. Qg4 {[%emt 0:05:12]} Bd7 {[%emt 0:07:45]} 25. Qg3 {[%emt 0:00:59]} Qa5 {[%emt 0:03:18]} 26. Bd2 {[%emt 0:01:04]} Qb6 {[%emt 0:00:03]} 27. Qd3 {[%emt 0:05:45]} Nf6 {[%emt 0:13:40]} 28. Qc4+ {[%emt 0:01:39]} Kh8 {[%emt 0:00:03]} 29. Ng5 {[%emt 0:03:07]} h6 {[%emt 0:00:31]} 30. Nf7+ {[%emt 0:00:28]} Kh7 {[%emt 0:00:24]} 31. Bxh6 {[%emt 0:02:47]} Bxh6 {[%emt 0:05:31]} 32. Nxh6 {[%emt 0:00:02]} Qxd6 {[%emt 0:01:16]} 33. Rd3 {[%emt 0:00:51]} Qf8 {[%emt 0:00:40]} 34. Qh4 {[%emt 0:01:53]} Re8 {[%emt 0:00:01]} 35. Ng4+ {[%emt 0:00:23]} Kg7 {[%emt 0:01:32]} 36. Qh6+ {[%emt 0:00:06]} Kf7 {[%emt 0:00:37]} 37. Rxd7+ {[%emt 0:00:15]} 1-0

[Event "SixDays Budapest GM-C 09-2024"]
[Site "Budapest"]
[Date "2024.09.25"]
[Round "3.1"]
[White "Grebennikov, Nikolai A."]
[Black "Aczel, Gergely"]
[Result "0-1"]
[ECO "D30"]
[WhiteElo "2220"]
[BlackElo "2460"]
[Annotator "TA"]
[PlyCount "72"]
[EventDate "2024.09.24"]
[EventType "tourn"]
[EventCountry "HUN"]
[SourceTitle "playchess.com"]
[Source "ChessBase"]
[SourceQuality "1"]
[TimeControl "5400+30"]

{[%evp 10,72,18,21,51,18,44,23,33,17,50,8,20,-5,0,-22,-15,-45,-36,-43,-25,-85,-81,-197,-197,-213,-214,-217,-198,-212,-202,-409,-397,-450,-412,-544,-539,-559,-544,-564,-494,-832,-831,-831,-803,-767,-759,-1390,-1325,-5389,-5090,-2152,-1499,-1944,-1475,-1385,-1347,-2630,-1464,-1357,-1315,-2176,-2176,-1925,-1877]} 1. d4 {[%emt 0:10:26]} Nf6 {[%emt 0:00:30]} 2. c4 {[%emt 0:00:06]} e6 {[%emt 0:00:07]} 3. Nf3 {[%emt 0:00:09]} d5 {[%emt 0:00:11]} 4. Bg5 {[%emt 0:00:05]} h6 {[%emt 0:00:48]} 5. Bxf6 {[%emt 0:00:07]} Qxf6 {[%emt 0:00:10]} 6. Nc3 {[%emt 0:00:32]} Qd8 {[%emt 0:01:07]} 7. e3 {[%emt 0:02:27]} g6 {[%emt 0:06:20]} 8. Qc2 {[%emt 0:04:30]} Bg7 {[%emt 0:00:46] Weiß hat minimalen Vorteil.} 9. h4 {[%emt 0:08:41]} c6 {[%emt 0:01:33]} 10. Bd3 {[%emt 0:02:03]} Nd7 {[%emt 0:00:44]} 11. g4 {[%emt 0:06:48][%cal Bg2g4,Bg4g5][%mdl 32]} O-O {[%emt 0:01:30]} 12. g5 {[%emt 0:02:30]} h5 {[%emt 0:03:14]} 13. cxd5 {[%emt 0:02:32]} exd5 {[%emt 0:00:35]} 14. O-O-O {[%emt 0:00:50]} Re8 {[%emt 0:01:49]} 15. e4 {[%emt 0:05:57]} (15. Kb1 $11 {bleibt in der Remisbreite.}) 15... Nf8 $17 {[%emt 0:05:41] Schwarz führt seinen Vorteil zum Gewinn.} 16. Ne5 {[%emt 0:04:34] [#]} Ne6 $1 $19 {[%emt 0:04:49]} 17. f4 {[%emt 0:07:17]} Nxf4 {[%emt 0:07:24]} 18. Rhf1 {[%emt 0:09:28]} Nxd3+ {[%emt 0:00:09]} 19. Rxd3 {[%emt 0:00:21]} Be6 {[%emt 0:02:02][%cal Oc6c5]} 20. Qf2 $2 {[%emt 0:04:49]} (20. exd5 {ist wohl besser.} cxd5 21. Kb1) 20... dxe4 {[%emt 0:09:46]} 21. Rd2 {[%emt 0:00:02]} Qa5 {[%emt 0:13:24][%csl LRa2,LRe5]} 22. Nxe4 {[%emt 0:04:05]} Qxa2 {[%emt 0:00:28] Schwarz steht klar auf Gewinn.} 23. Nf6+ {[%emt 0:04:24]} Bxf6 {[%emt 0:03:53]} 24. Qxf6 {[%emt 0:03:25][%cal Oe5g6]} Bb3 {[%emt 0:00:29][%cal Ra2a1]} 25. Rd3 {[%emt 0:01:20]} (25. Rc2 $142 Bxc2 26. Kxc2 Rxe5 27. dxe5) 25... Qa1+ {[%emt 0:04:19]} 26. Kd2 {[%emt 0:00:02]} Qxb2+ {[%emt 0:00:06]} 27. Ke3 {[%emt 0:00:09] [#]} c5 $3 {[%emt 0:05:37][%mdl 512] Und jetzt ...cxd4+ wäre schön.} 28. Rf2 {[%emt 0:02:56]} (28. Qf2 Rxe5+) 28... Qc1+ {[%emt 0:01:01]} 29. Ke4 {[%emt 0:02:05] [#]} Rad8 $1 {[%emt 0:09:51]} 30. Rxb3 {[%emt 0:01:24]} Rxd4+ {[%emt 0:00:24]} 31. Kf3 {[%emt 0:00:03]} Qd1+ {[%emt 0:00:20]} (31... Rxh4 32. Qxf7+ Kh8 33. Nxg6#) 32. Kg2 {[%emt 0:00:29]} Qxb3 {[%emt 0:00:31]} 33. Rf3 {[%emt 0:07:12]} Qe6 {[%emt 0:02:27]} 34. Qxe6 {[%emt 0:01:37]} Rxe6 {[%emt 0:00:20]} 35. Nxf7 {[%emt 0:00:09]} Kg7 {[%emt 0:00:17][%cal Oe6e7] Und ...Re7! würde nun gewinnen.} ({Lieber nicht} 35... Rxh4 36. Nh6+ Kg7 (36... Kh8 37. Rf8+ Kh7 38. Rf7+ Kh8 39. Rf8+ Kh7 40. Rf7+ Kh8 41. Rf8+ $11) 37. Rf7+ Kh8 38. Rf8+ Kh7 39. Rf7+ Kh8 40. Rf8+ Kh7 41. Rf7+ Kh8 $11) 36. Nh6 {[%emt 0:00:15]} Re7 {[%emt 0:00:38] Gewichteter Fehlerwert: Weiß=1.19/Schwarz=0.65.  Fehler:       	Weiß=4     	---        Ungenau:       	Weiß=4     	Schwarz=2     OK:         	Weiß=3     	Schwarz=11    Bester:       	---       	Schwarz=2} ({Schlechter ist} 36... Rxh4 37. Rf7+ Kh8 38. Rf8+ Kh7 39. Rf7+ Kh8 40. Rf8+ Kh7 41. Rf7+ Kh8 $11) 0-1

[Event "SixDays Budapest GM-C 09-2024"]
[Site "Budapest"]
[Date "2024.09.25"]
[Round "3.2"]
[White "Gatineau, Yovann"]
[Black "Zia, Tahsin Tajwar"]
[Result "1-0"]
[ECO "B15"]
[WhiteElo "2400"]
[BlackElo "2255"]
[Annotator "TA"]
[PlyCount "61"]
[EventDate "2024.09.24"]
[EventType "tourn"]
[EventCountry "HUN"]
[SourceTitle "playchess.com"]
[Source "ChessBase"]
[SourceQuality "1"]
[TimeControl "5400+30"]

{[%evp 10,61,33,18,25,3,21,15,10,8,20,5,6,4,7,7,20,11,22,0,12,12,8,-71,22,16,50,28,108,88,322,337,345,330,345,367,487,277,259,110,102,63,374,377,945,919,999,1072,1110,1118,1883,1542,29998,29999]} 1. e4 c6 {[%emt 0:06:12]} 2. d4 {[%emt 0:00:32]} d5 {[%emt 0:00:43]} 3. Nc3 {[%emt 0:00:05]} dxe4 {[%emt 0:00:25]} 4. Nxe4 {[%emt 0:00:06]} Nf6 {[%emt 0:00:18]} 5. Nxf6+ {[%emt 0:00:06]} exf6 {[%emt 0:00:03]} 6. Bc4 {[%emt 0:01:17]} Na6 {[%emt 0:01:07]} 7. Nf3 {[%emt 0:02:59]} Nc7 {[%emt 0:00:38]} 8. O-O {[%emt 0:00:42]} Bd6 {[%emt 0:01:47] The position is equal.} 9. Re1+ {[%emt 0:01:42]} Be6 {[%emt 0:00:22]} 10. Bxe6 {[%emt 0:05:08]} Nxe6 {[%emt 0:00:45]} 11. c4 {[%emt 0:00:12] Hoping for d5.} O-O {[%emt 0:00:21]} 12. Be3 {[%emt 0:00:52]} Re8 {[%emt 0:04:43]} 13. Qc2 {[%emt 0:02:50]} Qa5 {[%emt 0:01:31]} 14. a3 {[%emt 0:02:15]} Rad8 {[%emt 0:01:00]} 15. Rad1 {[%emt 0:02:08]} Bb8 {[%emt 0:01:27]} 16. b4 {[%emt 0:07:30]} (16. h3 $11) 16... Qh5 {[%emt 0:15:55]} (16... Qxa3 $17 17. c5 Qxb4) 17. h3 $11 {[%emt 0:02:45]} b5 {[%emt 0:09:14]} 18. Rc1 {[%emt 0:16:13]} Rd7 {[%emt 0:11:19]} (18... Rc8 $11 {remains equal.}) 19. Qe4 {[%emt 0:08:37]} Rc8 {[%emt 0:11:10] [#]} (19... bxc4 $16 {keeps fighting.} 20. Qxc6 Red8 21. Rxc4 (21. Qxc4 Qf5 $16) 21... h6) 20. d5 $1 $18 {[%emt 0:10:20][%mdl 512]} f5 {[%emt 0:00:27]} (20... cxd5 21. cxd5 Nc7 22. d6 Rxd6 23. Bxa7 $18) 21. Qb1 {[%emt 0:01:35]} cxd5 {[%emt 0:00:49]} 22. cxd5 {[%emt 0:03:00]} Nc7 {[%emt 0:02:30]} 23. Bf4 {[%emt 0:08:04] Black is weak on the dark squares} (23. d6 $142 Rxd6 24. Bxa7) 23... Rcd8 {[%emt 0:12:07]} 24. Bxc7 {[%emt 0:14:14]} (24. Qb3 $18 {has better winning chances.}) 24... Bxc7 $16 {[%emt 0:00:27]} 25. Nd4 $40 {[%emt 0:02:39][%cal Od4c6][%mdl 128] And now Nc6! would win. White attacks.} Rxd5 $2 {[%emt 0:02:26][%mdl 8192] [#]} (25... Qg5 $14) 26. Nc6 $1 $18 {[%emt 0:01:20]} (26. Rxc7 Rxd4 27. Rxa7 h6 $11 (27... Rd1 28. Qxd1 Qxd1 29. Rxd1 $14)) 26... Bb6 {[%emt 0:06:36]} (26... Kf8 27. Nxd8 (27. Nxa7 $2 Bb6 $19) 27... Bxd8) 27. Ne7+ {[%emt 0:00:54]} Kf8 {[%emt 0:00:02]} 28. Nxd5 {[%emt 0:00:11]} Rxd5 {[%emt 0:00:05]} 29. Rc8+ {[%emt 0:00:36]} Bd8 {[%emt 0:00:02]} 30. Qc1 {[%emt 0:01:53][%cal Oc1c5] Intending Qc5+! and mate.} Qg6 {[%emt 0:03:26] [#]} 31. Qc5+ $3 {[%emt 0:00:31][%mdl 512] Weighted Error Value: White=0.30/Black=0.77.  Loses game:     	---       	Black=2      Mistake:       	White=3     	Black=3      Inaccurate:     	White=1     	Black=2      OK:         	White=4     	Black=5      Best:        	White=2     	Black=1      Strong:       	White=1     	---        Brilliant:      	White=1     	---} 1-0

[Event "SixDays Budapest GM-C 09-2024"]
[Site "Budapest"]
[Date "2024.09.25"]
[Round "3.3"]
[White "Gretarsson, Helgi Ass"]
[Black "Mayank Chakraborty"]
[Result "1/2-1/2"]
[ECO "E62"]
[WhiteElo "2450"]
[BlackElo "2431"]
[Annotator "TA"]
[PlyCount "44"]
[EventDate "2024.09.24"]
[EventType "tourn"]
[EventCountry "HUN"]
[SourceTitle "playchess.com"]
[Source "ChessBase"]
[SourceQuality "1"]
[TimeControl "5400+30"]

{[%evp 15,44,43,40,27,32,28,35,10,34,41,39,46,49,42,51,0,0,0,20,26,43,0,0,0,0,0,0,0,7,-4,0]} 1. c4 {[%emt 0:00:03]} Nf6 {[%emt 0:00:07]} 2. Nc3 {[%emt 0:00:51]} g6 {[%emt 0:00:07]} 3. g3 {[%emt 0:00:14]} Bg7 {[%emt 0:00:06]} 4. Bg2 {[%emt 0:00:06]} O-O {[%emt 0:00:07]} 5. d4 {[%emt 0:02:12]} d6 {[%emt 0:02:01]} 6. Nf3 {[%emt 0:00:09]} Nc6 {[%emt 0:00:04]} 7. O-O {[%emt 0:00:10]} e5 {[%emt 0:00:04]} 8. d5 {[%emt 0:14:38]} Nb8 {[%emt 0:00:11]} 9. Ne1 {[%emt 0:02:05]} a5 {[%emt 0:00:17]} 10. e4 {[%emt 0:00:36]} Na6 {[%emt 0:03:27]} 11. a3 {[%emt 0:14:19] White is slightly better.} Bd7 {[%emt 0:04:22]} 12. Nd3 {[%emt 0:00:47]} Nc5 {[%emt 0:02:37]} 13. Nxc5 {[%emt 0:15:19]} dxc5 {[%emt 0:00:12]} 14. f4 {[%emt 0:00:26]} Ne8 {[%emt 0:09:13]} 15. fxe5 {[%emt 0:05:07]} (15. Be3 $14) 15... Bxe5 $11 {[%emt 0:00:47]} 16. Bh6 {[%emt 0:00:21]} Ng7 {[%emt 0:02:10]} 17. Qd2 {[%emt 0:06:04]} Qe7 {[%emt 0:04:20]} 18. a4 {[%emt 0:02:46]} f6 {[%emt 0:15:27] The position is equal.} 19. Be3 {[%emt 0:00:29]} b6 {[%emt 0:00:56]} 20. b3 {[%emt 0:00:28]} Ne8 {[%emt 0:01:53]} 21. Rae1 {[%emt 0:00:29]} Nd6 {[%emt 0:00:23]} 22. Ne2 {[%emt 0:00:14]} Rae8 {[%emt 0:02:47] Weighted Error Value: White=0.12 (very precise) /Black=0.06 (flawless) .  Mistake:       	White=1     	---        Inaccurate:     	White=1     	---        OK:         	White=4     	Black=6} 1/2-1/2

[Event "SixDays Budapest GM-C 09-2024"]
[Site "Budapest"]
[Date "2024.09.25"]
[Round "3.4"]
[White "Grover, Sahaj"]
[Black "Susilodinata, Andrean"]
[Result "0-1"]
[ECO "D00"]
[WhiteElo "2496"]
[BlackElo "2393"]
[Annotator "TA"]
[PlyCount "84"]
[EventDate "2024.09.24"]
[EventType "tourn"]
[EventCountry "HUN"]
[SourceTitle "playchess.com"]
[Source "ChessBase"]
[SourceQuality "1"]
[TimeControl "5400+30"]

{[%evp 9,84,0,35,22,14,26,18,0,8,14,11,22,17,10,28,-16,30,13,8,11,0,0,-4,0,0,0,-5,0,-15,-29,-24,-32,-45,-38,-25,-35,-8,-24,0,0,-4,-26,-18,-15,0,-44,-25,-62,0,-7,0,-6,0,-57,-57,-129,-135,-125,-133,-135,-135,-326,-323,-310,-309,-300,-307,-305,-306,-406,-389,-434,-434,-517,-511,-604,-587]} 1. d4 {[%emt 0:00:12]} d5 {[%emt 0:00:04]} 2. Bf4 {[%emt 0:00:04]} c5 {[%emt 0:00:08]} 3. e3 {[%emt 0:00:05]} Nc6 {[%emt 0:00:05]} 4. Nf3 {[%emt 0:00:04]} cxd4 {[%emt 0:01:47]} 5. exd4 e6 {[%emt 0:00:05]} 6. Nbd2 {[%emt 0:00:39]} Nge7 {[%emt 0:00:21]} 7. Bd3 {[%emt 0:05:25]} Ng6 {[%emt 0:03:52]} 8. Be3 {[%emt 0:00:20] The position is equal.} Bd6 {[%emt 0:00:42]} 9. c3 {[%emt 0:02:46]} Nf4 {[%emt 0:05:22]} 10. Bxf4 {[%emt 0:00:11]} Bxf4 {[%emt 0:00:02]} 11. g3 {[%emt 0:00:32]} Bh6 {[%emt 0:01:21]} 12. Qe2 {[%emt 0:00:35]} Bd7 {[%emt 0:02:27]} (12... O-O {feels stronger.}) 13. h4 {[%emt 0:04:28]} f6 {[%emt 0:04:27][%cal Oe6e5]} 14. O-O-O {[%emt 0:08:36]} Qe7 {[%emt 0:08:53]} 15. Nh2 {[%emt 0:01:24]} e5 {[%emt 0:01:38]} 16. dxe5 {[%emt 0:06:39]} fxe5 {[%emt 0:00:31]} 17. Qh5+ {[%emt 0:02:14]} Qf7 {[%emt 0:00:16]} 18. Qxf7+ {[%emt 0:00:05]} Kxf7 {[%emt 0:00:02]} 19. Kb1 {[%emt 0:00:06]} g6 {[%emt 0:09:53]} 20. Nb3 {[%emt 0:00:51]} Rad8 $1 {[%emt 0:00:35]} 21. Be2 {[%emt 0:11:10][%cal Oe2g4]} Bf5+ {[%emt 0:14:01]} 22. Ka1 {[%emt 0:00:01]} Bc2 {[%emt 0:01:11]} 23. Rde1 {[%emt 0:00:24]} Rhe8 {[%emt 0:02:35]} 24. Ng4 {[%emt 0:01:00]} Bg7 {[%emt 0:00:10]} 25. Ne3 {[%emt 0:07:18]} Bxb3 {[%emt 0:00:13]} 26. axb3 {[%emt 0:00:08]} Kf8 {[%emt 0:00:09]} 27. Nc2 {[%emt 0:13:13]} d4 {[%emt 0:08:17]} 28. Rd1 {[%emt 0:06:46]} dxc3 {[%emt 0:01:44]} (28... e4 $15 29. cxd4 Bxd4 (29... Nxd4 30. Nxd4 Bxd4 31. f3 $17)) 29. bxc3 $11 {[%emt 0:00:25]} e4 {[%emt 0:00:04]} 30. Kb2 {[%emt 0:00:38]} Rc8 {[%emt 0:00:10][%cal Oc6b4]} 31. Ne3 {[%emt 0:10:59]} ({White should play} 31. h5 $11) 31... Nb4 $36 {[%emt 0:05:19][%mdl 2048] Black has some pressure.} 32. Rc1 {[%emt 0:00:06]} (32. Bc4 $1 $15) 32... Red8 $17 {[%emt 0:01:19] Black is more active.} 33. Rhd1 {[%emt 0:00:36] [#] Prevents Rd2+.} Nd3+ $1 {[%emt 0:00:37]} 34. Bxd3 {[%emt 0:00:06]} exd3 {[%emt 0:00:04]} 35. Rd2 $2 {[%emt 0:03:51] This costs White the game.} (35. Ng2 $17) 35... b5 $19 {[%emt 0:07:15] ...b4 would now be deadly.} 36. b4 {[%emt 0:00:07] [#]} a5 $1 {[%emt 0:00:05][%mdl 512]} 37. Kb3 {[%emt 0:00:03]} (37. bxa5 $2 {loses.} b4 38. Rdd1 (38. Nd1 $2 bxc3+ 39. Rxc3 Rc5 $19) 38... bxc3+ (38... Rxc3 $2 39. Rxc3 bxc3+ 40. Kc1 $19) 39. Ka3 c2 $19) 37... a4+ {[%emt 0:00:54]} 38. Kb2 {[%emt 0:00:05]} Kf7 {[%emt 0:03:27]} 39. f4 {[%emt 0:01:23]} h5 {[%emt 0:00:30] Prevents Ng4.} 40. g4 {[%emt 0:00:32]} Bf6 {[%emt 0:08:25] Black is clearly winning.} 41. g5 {[%emt 0:02:25]} Bg7 {[%emt 0:00:45]} 42. f5 {[%emt 0:00:04]} Be5 {[%emt 0:00:40] Weighted Error Value: White=0.30/Black=0.07 (flawless) .  Loses game:     	White=1     	---        Mistake:       	White=2     	Black=2      Inaccurate:     	White=4     	Black=1      OK:         	White=12    	Black=12     Best:        	White=2     	Black=3      Strong:       	---       	Black=2      Brilliant:      	---       	Black=1} 0-1